fUST/lending_fUST_20250313
["ID","MTS","AMOUNT","RATE_DAILY","PERIOD"]
[356052743,1741861839588,-165.64410476,0.00013095,2]
[356052796,1741861846559,-134.35589524,0.00013095,2]
[356052797,1741861846569,-115.29510476,0.00013095,2]
[356052798,1741861846582,-69002.47625117,0.00013095,2]
[356052799,1741861846620,-2272.16802545,0.00013095,2]
[356052800,1741861846630,-105520.52300453,0.00013096,2]
[356052806,1741862069919,-695.4578524,0.00013073,2]
[356052807,1741862069945,-300.0,0.00013094,2]
[356052808,1741862069968,-309.5421476,0.00013096,2]
[356052809,1741862456726,-401.6381937,0.00012096,2]
[356052870,1741863031942,-210.13306792,0.00012483,2]
[356052877,1741863032000,-289.86693208,0.00012483,2]
[356052879,1741863032010,-189.34789692,0.00012683,2]
[356052909,1741863037759,-164.62510308,0.00012683,2]
[356052910,1741863037769,-210.163454,0.0001287,10]
[356052911,1741863037779,-210.163454,0.00012919,2]
[356052912,1741863037790,-1175.9240269,0.00013019,2]
[356053110,1741863045831,-556.36628192,0.00013071,2]
[356053112,1741863045841,-375.856,0.00013095,2]
[356053114,1741863045850,-300.0,0.00013095,2]
[356053116,1741863045860,-51923.82385079,0.00013096,2]
[356053533,1741863667823,-500.0,0.00012478,2]
[356053534,1741863731602,-5154.6556631,0.00012867,2]
[356053535,1741863731626,-168.130763,0.0001287,10]
[356053536,1741863731649,-168.130763,0.00012912,2]
[356053537,1741863731671,-445.0935112,0.00012919,2]
[356053538,1741863731693,-1000.0,0.00013011,2]
[356053539,1741863731716,-300.0,0.00013017,2]
[356053540,1741863748889,-35694.96969069,0.00013018,2]
[356053541,1741863748914,-62069.01960901,0.00013019,2]
[356053542,1741863781712,1000.0,0.00012061,2]
[356053543,1741863784361,-1398.0044483,0.00012061,2]
[356053544,1741863939377,-702.25387966,0.00012,2]
[356053545,1741864035219,-500.0,0.0001312,10]
[356053546,1741864035258,-500.0,0.0001312,10]
[356053547,1741864035756,-500.0,0.0001312,10]
[356053548,1741864035790,-500.0,0.0001312,10]
[356053549,1741864132367,-2809.3524376,0.00012016,2]
[356053550,1741864144525,-177.03134459,0.00012015,2]
[356053551,1741864204262,-300.0,0.00012015,2]
[356053603,1741864237839,-22090.6475624,0.00012016,2]
[356053604,1741864237850,-3865.9917473,0.00012867,2]
[356053605,1741864237859,-356.07480896,0.00012919,2]
[356053606,1741864237868,-1468.80648128,0.00012919,2]
[356053607,1741864237878,-1000.0,0.00013011,2]
[356053608,1741864237887,-206.14764939,0.00013018,2]
[356053609,1741864237910,-3455.65,0.00013018,2]
[356053645,1741864240100,-1605.52430516,0.00013018,2]
[356053646,1741864240154,-2129.85333198,0.00013018,2]
[356053647,1741864240280,-665.64526297,0.00013018,2]
[356053674,1741864242997,-1677.28475584,0.00013018,2]
[356053680,1741864243123,-951.51188193,0.00013018,2]
[356053683,1741864246139,-407.70455786,0.00012015,2]
[356053684,1741864246149,-1056.45010102,0.00013018,2]
[356053693,1741864546595,2558.31,0.0001,2]
[356053694,1741864557479,1279.16,0.0001,2]
[356053695,1741864571431,639.58,0.0001,2]
[356053696,1741864590932,319.79,0.0001,2]
[356053697,1741864600944,159.89,0.0001,2]
[356053702,1741865268560,-151.0,0.00011917,2]
[356053703,1741865283621,-300.0,0.00011916,2]
[356053705,1741865344564,-200.0,0.00011916,2]
[356053706,1741865354282,-100.0,0.00011916,2]
[356053707,1741865354309,-186.88883218,0.00011916,2]
[356053708,1741865354333,-28.06878051,0.00011916,2]
[356053712,1741865364486,-168.0,0.00011916,2]
[356053713,1741865372103,-78.75941667,0.00011916,2]
[356053714,1741865372130,-89.20722483,0.00011916,2]
[356053716,1741865404739,-177.3314757,0.00011916,2]
[356053741,1741865438300,-122.6685243,0.00011916,2]
[356053742,1741865438310,-74.21340037,0.00011916,2]
[356053743,1741865438320,-217.93307533,0.00011916,2]
[356053744,1741865439027,-282.06692467,0.00011916,2]
[356053822,1741865446367,-314.95761269,0.00011916,2]
[356053824,1741865446378,-1000.0,0.00011917,2]
[356053826,1741865446389,-1234.01718731,0.00011917,2]
[356053854,1741865447052,-3514.36493743,0.00011917,2]
[356053862,1741865549749,-178.32599598,0.00011917,2]
[356053863,1741865929536,-211.64123117,0.00019,120]
[356053864,1741865929589,-19576.71753766,0.0002,120]
[356053865,1741866122825,-284.85984716,0.000119,2]
[356053866,1741866122849,-116.77834654,0.00011915,2]
[356053867,1741866123444,-248.8156253,0.00011915,2]
[356053868,1741866123470,-152.8225684,0.00011915,2]
[356053869,1741866140231,-167.9666415,0.00010959,2]
[356053872,1741866369023,-214.79838911,0.0001094,2]
[356053873,1741866393650,-150.0,0.00010939,2]
[356053874,1741866402226,-84.975412,0.00010939,2]
[356053875,1741866402250,-104.9300987,0.00010939,2]
[356053876,1741866410442,-150.98568159,0.00010939,2]
[356053877,1741866410467,-10.37699353,0.00010939,2]
[356053878,1741866423819,-227.53727826,0.00010939,2]
[356053879,1741866456029,-150.0,0.0001083,2]
[356053880,1741866467543,-1651.3406796,0.0001083,2]
[356053881,1741866467584,-72.46272174,0.00010939,2]
[356053882,1741866467619,-372.38803708,0.00010939,2]
[356053883,1741866467652,-179.1410462,0.00010939,2]
[356053884,1741866467687,-7724.66751538,0.0001094,2]
[356053885,1741866468614,-297.2889598,0.0001094,2]
[356053886,1741866472521,-5337.38741521,0.0001094,2]
[356053887,1741866472555,-227.88787776,0.00011873,2]
[356053888,1741866490665,150.0,0.00011,2]
[356053889,1741866491008,248.0,0.00011,2]
[356053890,1741866491347,496.0,0.00011,2]
[356053891,1741866491711,991.0,0.00011,2]
[356053892,1741866492096,1983.0,0.00011,2]
[356053893,1741866492452,566.72470703,0.00011,2]
[356053894,1741866492484,3399.27529297,0.00011,2]
[356053895,1741866493342,6600.72470703,0.00011,2]
[356053896,1741866493594,-195.7092092,0.00011,2]
[356053897,1741866497434,-1134.56608377,0.00011,2]
[356053898,1741866497457,-522.71878128,0.00011,2]
[356053899,1741866507745,-150.97123,0.00011,2]
[356053900,1741866514572,-10000.0,0.00011,2]
[356053901,1741866516259,-212.89159094,0.00010999,2]
[356053902,1741866532206,-189.9055107,0.00010912,2]
[356053903,1741866544582,-300.0,0.00010999,2]
[356053904,1741866573394,-1822.4799712,0.00011,2]
[356053905,1741866573423,-731.54360366,0.00011,2]
[356053946,1741866633526,-300.0,0.00010999,2]
[356053947,1741866633536,-5986.7256006,0.00010999,2]
[356053948,1741866633546,-185386.89762568,0.00011,2]
[356053949,1741866633610,-6616.4597546,0.00011,2]
[356053950,1741866633623,-468.04,0.00011,2]
[356053951,1741866633636,-1661.28631366,0.00011,2]
[356053952,1741866633684,-1738.33219876,0.00011,2]
[356054098,1741866646688,-899.02119,0.00011,2]
[356054101,1741866861133,211.6,0.00019,120]
[356054102,1741866864671,-342.48,0.0001078,2]
[356054103,1741866945093,-202.922946,0.0001071,2]
[356054104,1741867055302,401.6381937,9.917e-05,2]
[356054105,1741867055860,-184.62291197,0.00010491,2]
[356054106,1741867105554,3459.7436225,9.905e-05,2]
[356054107,1741867247310,-260.3889252,0.00010386,2]
[356054108,1741867255969,6152.61422275,9.904e-05,2]
[356054109,1741867256003,822.34364095,9.904e-05,2]
[356054110,1741867437648,-239.6110748,0.00010392,2]
[356054111,1741867442264,-158.35575,0.00010392,2]
[356054112,1741867446042,-903.83450175,0.00010392,2]
[356054113,1741867447014,-184.62291197,0.00010497,2]
[356054114,1741867447037,-115.37708803,0.00010597,2]
[356054115,1741867453898,-134.62291197,0.00010597,2]
[356054116,1741867453922,-23.73283803,0.00010709,2]
[356054117,1741867537887,1450.9956641,9.936e-05,2]
[356054118,1741867645514,1129.6540987,9.924e-05,2]
[356054119,1741867767119,-236.65608717,0.00010709,2]
[356054120,1741867767141,-239.6110748,0.00010709,2]
[356054121,1741867767164,-1933.39195315,0.0001071,2]
[356054181,1741867838469,-344.54057035,0.0001071,2]
[356054183,1741867838479,-195.7092092,0.00010711,2]
[356054185,1741867838489,-162.68309856,0.00010762,3]
[356054187,1741867838499,-4621.07,0.000109,3]
[356054189,1741867838508,-342.48,0.00010959,2]
[356054191,1741867838518,-300.0,0.00010999,2]
[356054193,1741867838527,-315.25263254,0.00010999,2]
[356054195,1741867838537,-270.42923,0.00010999,2]
[356054197,1741867838548,-40763.53340108,0.00011,3]
[356054200,1741867838563,-425.78035054,0.00011,3]
[356054203,1741867838583,-1074.36602532,0.00011,3]
[356054210,1741867839858,-2809.3524376,0.00011,3]
[356054214,1741867840674,-4263.57448745,0.00011,3]
[356054237,1741867846612,-663.39329801,0.00011,3]
[356054238,1741867846622,-1304.77310375,0.000112,2]
[356054239,1741867846632,-799.90801415,0.00011511,2]
[356054240,1741867846642,-6741.90495472,0.000119,4]
[356054241,1741867846654,-8147.82428634,0.000119,4]
[356054242,1741867846671,-5110.27075894,0.000119,4]
[356054243,1741867846681,-178.14423088,0.0001201,2]
[356054244,1741867846690,-420.0,0.00012087,2]
[356054245,1741867846701,-2271.0,0.0001272,2]
[356054246,1741867846711,-399.0,0.00012753,2]
[356054247,1741867846720,-399.0,0.00012753,2]
[356054248,1741867846730,-2899.4938105,0.00012757,2]
[356054249,1741867846741,-151.0,0.00012892,2]
[356054250,1741867846755,-1000.0,0.00012892,2]
[356054251,1741867846764,-15835.97635089,0.000129,8]
[356054252,1741867878018,-177.03134459,0.000112,2]
[356054257,1741868760675,-702.25387966,0.000112,2]
[356054376,1741869036369,-120.71477575,0.000112,2]
[356054377,1741869036379,-2809.3524376,0.00011967,2]
[356054378,1741869036389,-1398.0044483,0.0001197,2]
[356054379,1741869036399,-500.0,0.00012055,2]
[356054380,1741869036410,-2174.6203578,0.00012634,2]
[356054381,1741869036419,-300.0,0.00012799,2]
[356054382,1741869036430,-150.0,0.000128,2]
[356054383,1741869036439,-245.0,0.000128,2]
[356054384,1741869036449,-309.0,0.000128,2]
[356054386,1741869036459,-477.0,0.000128,2]
[356054387,1741869036469,-490.0,0.000128,2]
[356054388,1741869036479,-757.0,0.000128,2]
[356054389,1741869036488,-222.94515542,0.00012891,2]
[356054390,1741869036498,-189.300461,0.00012899,2]
[356054391,1741869036508,-220.67684278,0.00012899,2]
[356054392,1741869036518,-4164.02364911,0.000129,8]
[356054393,1741869036527,-162.8797639,0.000129,2]
[356054394,1741869036537,-250.7135347,0.00012915,2]
[356054395,1741869036547,-1000.0,0.00012917,2]
[356054396,1741869036556,-150.0,0.00012956,2]
[356054397,1741869036566,-150.047,0.00012956,2]
[356054398,1741869036575,-186.057,0.00012956,2]
[356054399,1741869036585,-2271.0,0.00012971,2]
[356054400,1741869036595,-161.473,0.00012971,2]
[356054401,1741869036604,-399.0,0.00012971,2]
[356054402,1741869036614,-399.0,0.00012971,2]
[356054403,1741869036624,-668.005,0.00012971,2]
[356054404,1741869036634,-178.0,0.00013018,2]
[356054405,1741869036644,-800.0,0.00013094,2]
[356054406,1741869036654,-300.685,0.00013106,2]
[356054407,1741869036664,-4196.92262126,0.00013119,2]
[356054408,1741869036692,-1262.79633116,0.00013119,2]
[356054409,1741869036704,-1152.98819406,0.00013119,2]
[356054464,1741869037977,-3297.29285352,0.00013119,2]
[356054466,1741869037987,-3751.48968693,0.0001312,10]
[356054524,1741869043094,-49.17671664,0.00012971,2]
[356054559,1741869045866,-332.71602413,0.00012971,2]
[356054560,1741869045933,-1534.10725923,0.00012971,2]
[356054561,1741869045948,-4311.99021757,0.0001312,10]
[356054563,1741869045958,-2749.68537011,0.00013198,2]
[356054566,1741869045968,-627.0,0.000132,2]
[356054567,1741869045978,-1000.0,0.00013212,2]
[356054568,1741869045988,-13177.22545442,0.0001322,2]
[356054569,1741869046009,-576.0,0.0001322,2]
[356054570,1741869615799,-153.26,0.00010959,2]
[356054571,1741869626303,-766.35,0.00010959,2]
[356054621,1741870232164,-547.52337871,0.000121,2]
[356054623,1741870232176,-573.72476306,0.000121,2]
[356054760,1741870243059,-845.32987168,0.000121,2]
[356054787,1741870246031,-500.0,0.00012199,2]
[356054788,1741870246042,-500.0,0.00012199,2]
[356054791,1741870246052,-293.07519047,0.00012199,2]
[356054793,1741870246061,-500.0,0.00012199,2]
[356054794,1741870246071,-371.97574609,0.00012199,2]
[356054796,1741870246080,-500.0,0.00012199,2]
[356054798,1741870246090,-500.0,0.00012199,2]
[356054800,1741870246100,-500.0,0.00012199,2]
[356054803,1741870246110,-239.591239,0.00012199,2]
[356054805,1741870246119,-1000.0,0.000122,2]
[356054807,1741870246128,-241.13506344,0.00012204,2]
[356054808,1741870246138,-422.90470699,0.00012304,2]
[356054837,1741871237534,-164.340267,0.00011736,2]
[356054838,1741871262886,-311.8982895,0.00011721,2]
[356054839,1741871324736,-878.04238277,0.00011768,2]
[356054940,1741871433289,-193.28791544,0.00011886,2]
[356054941,1741871433300,-2910.70683628,0.00011887,2]
[356054942,1741871433312,-1120.32101284,0.000125,2]
[356054943,1741871433324,-300.0,0.00012794,2]
[356054944,1741871433336,-154.47378995,0.00012794,2]
[356054945,1741871433348,-1337.93450024,0.00012795,2]
[356054946,1741871433361,-1655.42830006,0.00012795,2]
[356054947,1741871433373,-1855.16143992,0.00012795,2]
[356054978,1741871438187,-8648.08063195,0.00012795,2]
[356055049,1741871446252,-1570.2580778,0.00012795,2]
[356055050,1741871764693,0.04123117,0.00019,120]
[356055051,1741871886035,13400.91532583,0.0001655,120]
[356055052,1741871936648,48283.17171134,0.000157,120]
[356055171,1741872636048,-365.53308966,0.00011955,2]
[356055172,1741872636058,-210.26143238,0.00012055,2]
[356055176,1741872636224,-289.73856762,0.00012055,2]
[356055177,1741872636234,-300.0,0.00012694,2]
[356055178,1741872636243,-1496.68140015,0.00012695,2]
[356055179,1741872636253,-227.88787776,0.00012695,2]
[356055180,1741872636263,-90722.42166284,0.00012695,2]
[356055181,1741872636277,-18343.91653282,0.00012695,2]
[356055182,1741872636288,-6623.98554691,0.00012695,2]
[356055301,1741872646544,-10855.0218325,0.00012695,2]
[356055356,1741873833210,-300.0,0.00012049,2]
[356055357,1741873833220,-1505.49796479,0.00012054,2]
[356055429,1741873843603,-193.28791544,0.00012049,2]
[356055430,1741873843613,-319.08640145,0.00012049,2]
[356055433,1741873843667,-180.91359855,0.00012049,2]
[356055435,1741873843680,-500.0,0.00012049,2]
[356055436,1741873843690,-500.0,0.00012049,2]
[356055438,1741873843700,-387.49529249,0.00012049,2]
[356055504,1741873846579,-2910.70683628,0.00011929,2]
[356055505,1741873846589,-93.19720644,0.00012049,2]
[356055506,1741873846599,-500.0,0.00012049,2]
[356055507,1741873846611,-500.0,0.00012049,2]
[356055508,1741873846620,-500.0,0.00012049,2]
[356055509,1741873846630,-500.0,0.00012049,2]
[356055510,1741873846640,-500.0,0.00012049,2]
[356055511,1741873846650,-5561.697809,0.00012054,5]
[356055512,1741873846660,-200.0211179,0.00012055,2]
[356055513,1741873846673,-163.3024189,0.00012595,2]
[356055514,1741873846683,-219.00401265,0.00012626,2]
[356055515,1741873846692,-220.99680069,0.00012626,2]
[356055516,1741873846701,-163.30241888,0.00012627,2]
[356055517,1741873846712,-20419.07752131,0.0001265,3]
[356055518,1741873846722,-182.3103022,0.00012658,2]
[356055519,1741873846731,-163.30241888,0.00012658,2]
[356055520,1741873846741,-151.0,0.00012688,2]
[356055521,1741873846751,-1000.0,0.00012688,2]
[356055522,1741873846761,-110433.5521213,0.00012694,2]
[356055523,1741873846770,-151.0,0.00012695,2]
[356055524,1741873846781,-151.0,0.00012695,2]
[356055525,1741873846790,-151.0,0.00012695,2]
[356055526,1741873846800,-151.0,0.00012695,2]
[356055527,1741873846808,-151.0,0.00012695,2]
[356055528,1741873846818,-151.0,0.00012695,2]
[356055529,1741873846827,-151.0,0.00012695,2]
[356055530,1741873846837,-151.0,0.00012695,2]
[356055531,1741873846846,-151.0,0.00012695,2]
[356055532,1741873846857,-151.0,0.00012695,2]
[356055533,1741873846866,-151.0,0.00012695,2]
[356055534,1741873846875,-151.0,0.00012695,2]
[356055535,1741873846884,-151.0,0.00012695,2]
[356055536,1741873846894,-151.0,0.00012695,2]
[356055537,1741873846903,-151.0,0.00012695,2]
[356055538,1741873846912,-151.0,0.00012695,2]
[356055539,1741873846921,-151.0,0.00012695,2]
[356055540,1741873846931,-54533.16909783,0.00012695,2]
[356055541,1741873846942,-748.34070007,0.00012695,2]
[356055542,1741873846951,-204520.99262059,0.00012695,2]
[356055543,1741873846961,-476.1766075,0.00012758,2]
[356055544,1741873846971,-150.0,0.00012762,2]
[356055545,1741873846981,-150.0,0.00012762,2]
[356055546,1741873846991,-153.0,0.000128,2]
[356055547,1741873847002,-150.0,0.00012873,2]
[356055548,1741873847013,-1916.0,0.00012873,2]
[356055549,1741873847023,-540.0,0.00012873,2]
[356055550,1741873847032,-2271.0,0.00012873,2]
[356055551,1741873847042,-399.0,0.00012873,2]
[356055553,1741873847051,-399.0,0.00012873,2]
[356055555,1741873847063,-182.31030217,0.00012893,2]
[356055557,1741873847072,-40000.00355835,0.000129,3]
[356055559,1741873847082,-151.0,0.000129,2]
[356055560,1741873847091,-158.35575,0.000129,2]
[356055562,1741873847101,-500.0,0.000129,2]
[356055564,1741873847111,-500.0,0.000129,2]
[356055566,1741873847120,-151.0,0.000129,2]
[356055568,1741873847129,-294.824918,0.000129,2]
[356055570,1741873847139,-151.0,0.000129,2]
[356055572,1741873847148,-151.0,0.000129,2]
[356055573,1741873847159,-153.0,0.000129,2]
[356055575,1741873847168,-151.0,0.000129,2]
[356055577,1741873847177,-151.0,0.000129,2]
[356055578,1741873847187,-151.0,0.000129,2]
[356055579,1741873847196,-151.0,0.000129,2]
[356055580,1741873847205,-151.0,0.000129,2]
[356055581,1741873847215,-151.0,0.000129,2]
[356055582,1741873847225,-151.0,0.000129,2]
[356055583,1741873847451,-151.0,0.000129,2]
[356055584,1741873847461,-151.0,0.000129,2]
[356055585,1741873847470,-151.0,0.000129,2]
[356055586,1741873847480,-151.0,0.000129,2]
[356055587,1741873847489,-151.0,0.000129,2]
[356055588,1741873847499,-151.0,0.000129,2]
[356055589,1741873847507,-1285.20567112,0.000129,2]
[356055590,1741873847517,-151.0,0.00012921,2]
[356055591,1741873847526,-151.0,0.00012921,2]
[356055592,1741873847536,-153.578099,0.00012921,2]
[356055593,1741873847548,-151.0,0.00012921,2]
[356055594,1741873847558,-16595.0931271,0.00012952,2]
[356055595,1741873847567,-151.0,0.00012952,2]
[356055596,1741873847577,-500.0,0.00012952,2]
[356055597,1741873847586,-500.0,0.00012952,2]
[356055598,1741873847596,-151.0,0.00012952,2]
[356055599,1741873847605,-151.0,0.00012952,2]
[356055600,1741873847615,-153.924241,0.00012952,2]
[356055601,1741873847625,-154.167493,0.00012952,2]
[356055602,1741873847634,-151.0,0.00012952,2]
[356055603,1741873847644,-151.0,0.00012952,2]
[356055604,1741873847653,-251.279335,0.00012952,2]
[356055605,1741873847664,-151.0,0.00012952,2]
[356055606,1741873847680,-151.0,0.00012952,2]
[356055607,1741873847699,-151.0,0.00012952,2]
[356055608,1741873847714,-151.0,0.00012952,2]
[356055609,1741873847724,-151.0,0.00012952,2]
[356055610,1741873847733,-151.0,0.00012952,2]
[356055611,1741873847743,-500.0,0.00012953,2]
[356055612,1741873847752,-500.0,0.00012953,2]
[356055613,1741873847762,-151.0,0.00012953,2]
[356055614,1741873847771,-151.0,0.00012953,2]
[356055615,1741873847781,-151.0,0.00012953,2]
[356055616,1741873847791,-3091.4534213,0.00012955,2]
[356055617,1741873847800,-208.658671,0.00012955,2]
[356055618,1741873847809,-151.0,0.00012955,2]
[356055619,1741873847819,-151.0,0.00012955,2]
[356055620,1741873847829,-151.0,0.00012955,2]
[356055621,1741873847839,-151.0,0.00012955,2]
[356055622,1741873847849,-151.0,0.00012955,2]
[356055623,1741873847861,-151.0,0.00012955,2]
[356055624,1741873847872,-2224.00963349,0.00013,2]
[356055625,1741873847883,-1200.0,0.00013,2]
[356055626,1741873847892,-151.0,0.00013,2]
[356055627,1741873847901,-500.0,0.00013,2]
[356055628,1741873847911,-500.0,0.00013,2]
[356055629,1741873847920,-151.0,0.00013,2]
[356055630,1741873847930,-254.845892,0.00013,2]
[356055631,1741873847940,-151.0,0.00013,2]
[356055632,1741873847950,-240.548,0.00013011,2]
[356055633,1741873847960,-645.0,0.000131,2]
[356055634,1741873847969,-182.31030217,0.00013128,2]
[356055635,1741873847979,-151.0,0.00013137,2]
[356055636,1741873847989,-213.926736,0.00013137,2]
[356055637,1741873847999,-151.0,0.00013137,2]
[356055638,1741873848009,-151.0,0.00013137,2]
[356055639,1741873848019,-151.0,0.00013143,2]
[356055640,1741873848029,-151.0,0.00013143,2]
[356055641,1741873848040,-150.0,0.00013143,2]
[356055642,1741873848051,-150.0,0.00013143,2]
[356055643,1741873848065,-1285.2056711,0.00013176,2]
[356055644,1741873848075,-408.92483582,0.00013178,2]
[356055645,1741873848086,-500.0,0.0001322,2]
[356055646,1741873848097,-500.0,0.0001322,2]
[356055647,1741873848108,-299.94246,0.0001322,2]
[356055648,1741873848118,-151.0,0.0001322,2]
[356055649,1741873848128,-151.0,0.0001322,2]
[356055650,1741873848138,-151.0,0.0001322,2]
[356055651,1741873848148,-151.0,0.0001322,2]
[356055652,1741873848158,-274.29156,0.0001322,2]
[356055653,1741873848168,-151.0,0.0001322,2]
[356055654,1741873848178,-241.80376,0.0001322,2]
[356055655,1741873848188,-13701.36973326,0.0001322,2]
[356055656,1741873848198,-420.0,0.00013226,2]
[356055657,1741873848208,-182.31030217,0.00013363,2]
[356055658,1741873848218,-500.02957228,0.00013395,2]
[356055659,1741873848230,-465.55883037,0.00013396,2]
[356055660,1741873848242,-1037.5904971,0.000134,2]
[356055661,1741873848252,-600.0,0.00013413,2]
[356055662,1741873848265,-150.189086,0.00013425,2]
[356055663,1741873848275,-600.0,0.00013553,2]
[356055664,1741873848286,-152.0,0.00013571,2]
[356055665,1741873848301,-87987.0392051,0.00013596,2]
[356055666,1741873848311,-175.02568053,0.00013596,2]
[356055667,1741873848322,-500.0,0.00013596,2]
[356055668,1741873848331,-500.0,0.00013596,2]
[356055669,1741873848342,-151.0,0.00013596,2]
[356055670,1741873848352,-151.0,0.00013596,2]
[356055671,1741873848365,-151.0,0.00013596,2]
[356055672,1741873848377,-150.3,0.00013596,2]
[356055673,1741873848387,-500.0,0.00013596,2]
[356055674,1741873848397,-2005.0,0.00013596,2]
[356055675,1741873848407,-500.0,0.00013596,2]
[356055676,1741873848417,-150.3,0.00013596,2]
[356055677,1741873848427,-500.0,0.00013596,2]
[356055678,1741873848438,-150.3,0.00013596,2]
[356055679,1741873848448,-800.0,0.00013597,2]
[356055680,1741873848458,-800.0,0.00013597,2]
[356055681,1741873848468,-274.039936,0.00013597,2]
[356055682,1741873848478,-151.0,0.00013597,2]
[356055683,1741873848487,-201.155014,0.00013597,2]
[356055684,1741873848496,-500.0,0.00013598,2]
[356055685,1741873848506,-500.0,0.00013598,2]
[356055686,1741873848515,-182.31030217,0.00013598,2]
[356055687,1741873848525,-3000.0,0.00013598,2]
[356055688,1741873848534,-237.76758898,0.00013598,2]
[356055689,1741873848544,-150.189086,0.00013638,2]
[356055690,1741873848554,-800.0,0.00013669,2]
[356055691,1741873848563,-268.91550172,0.00013673,2]
[356055692,1741873848573,-392.40020983,0.00013673,2]
[356055693,1741873848583,-500.0,0.00013673,2]
[356055694,1741873848593,-500.0,0.00013673,2]
[356055695,1741873848603,-500.0,0.00013673,2]
[356055696,1741873848613,-500.0,0.00013673,2]
[356055697,1741873848624,-500.0,0.00013673,2]
[356055698,1741873848633,-500.0,0.00013673,2]
[356055699,1741873848643,-500.0,0.00013673,2]
[356055700,1741873848653,-500.0,0.00013673,2]
[356055701,1741873848663,-500.0,0.00013673,2]
[356055702,1741873848677,-521.59837808,0.00013673,2]
[356055703,1741873848687,-418.71389712,0.00013673,2]
[356055704,1741873848697,-500.0,0.00013673,2]
[356055705,1741873848707,-500.0,0.00013673,2]
[356055706,1741873848718,-155.9611258,0.00013673,2]
[356055707,1741873848728,-500.0,0.00013673,2]
[356055708,1741873848738,-500.0,0.00013673,2]
[356055709,1741873848761,-500.0,0.00013673,2]
[356055710,1741873848784,-500.0,0.00013673,2]
[356055711,1741873848809,-500.0,0.00013673,2]
[356055712,1741873848842,-500.0,0.00013673,2]
[356055713,1741873848889,-500.0,0.00013673,2]
[356055714,1741873848941,-500.0,0.00013673,2]
[356055715,1741873848977,-500.0,0.00013673,2]
[356055716,1741873848988,-500.0,0.00013673,2]
[356055717,1741873849000,-500.0,0.00013673,2]
[356055718,1741873849014,-500.0,0.00013673,2]
[356055719,1741873849025,-500.0,0.00013673,2]
[356055720,1741873849036,-500.0,0.00013673,2]
[356055721,1741873849046,-500.0,0.00013673,2]
[356055722,1741873849057,-500.0,0.00013673,2]
[356055723,1741873849067,-500.0,0.00013673,2]
[356055724,1741873849077,-500.0,0.00013673,2]
[356055725,1741873849087,-500.0,0.00013673,2]
[356055726,1741873849097,-500.0,0.00013673,2]
[356055727,1741873849111,-500.0,0.00013673,2]
[356055728,1741873849122,-505.89413725,0.00013673,2]
[356055729,1741873849132,-500.0,0.00013673,2]
[356055730,1741873849142,-500.0,0.00013673,2]
[356055731,1741873849152,-500.0,0.00013673,2]
[356055732,1741873849162,-500.0,0.00013673,2]
[356055733,1741873849172,-500.0,0.00013673,2]
[356055734,1741873849181,-500.0,0.00013673,2]
[356055735,1741873849192,-500.0,0.00013673,2]
[356055736,1741873849202,-161.70465243,0.00013673,2]
[356055737,1741873849213,-225.96423634,0.00013673,2]
[356055738,1741873849223,-500.0,0.00013673,2]
[356055739,1741873849233,-500.0,0.00013673,2]
[356055740,1741873849242,-500.0,0.00013673,2]
[356055741,1741873849252,-500.0,0.00013673,2]
[356055742,1741873849262,-500.0,0.00013673,2]